[Event "Late-Titled-Tuesday-Blitz-April-02-2024"]
[Site "Chess.com"]
[Date "2024.04.02"]
[Round "1"]
[White "GMBenjaminBok"]
[Black "flawian2008"]
[Result "1/2-1/2"]
[WhiteElo "3009"]
[BlackElo "2531"]
[TimeControl "180+1"]
[EndTime "14:09:24 PDT"]
[Termination "Game drawn by repetition"]

1. d4 {[%clk 0:03:00.9]} 1... Nf6 {[%clk 0:03:00.2]} 2. c4 {[%clk 0:02:58.8]}
2... e6 {[%clk 0:03:00.7]} 3. Nc3 {[%clk 0:02:57.7]} 3... Bb4 {[%clk 0:03:00.9]}
4. Qc2 {[%clk 0:02:58.3]} 4... O-O {[%clk 0:02:59.8]} 5. a3 {[%clk 0:02:58.5]}
5... Bxc3+ {[%clk 0:02:59.7]} 6. Qxc3 {[%clk 0:02:59.4]} 6... d5 {[%clk
0:02:57.5]} 7. Bg5 {[%clk 0:02:58.8]} 7... c5 {[%clk 0:02:57.9]} 8. dxc5 {[%clk
0:02:58.4]} 8... d4 {[%clk 0:02:58.6]} 9. Qf3 {[%clk 0:02:59]} 9... Nc6 {[%clk
0:02:54.1]} 10. b4 {[%clk 0:02:29.5]} 10... e5 {[%clk 0:02:11.8]} 11. e3 {[%clk
0:02:26]} 11... e4 {[%clk 0:01:57]} 12. Bxf6 {[%clk 0:02:23.3]} 12... gxf6
{[%clk 0:01:57.9]} 13. Qxe4 {[%clk 0:02:08.1]} 13... dxe3 {[%clk 0:01:58.5]} 14.
fxe3 {[%clk 0:01:43.4]} 14... Re8 {[%clk 0:01:58.6]} 15. Qf4 {[%clk 0:01:41.1]}
15... a5 {[%clk 0:01:40.6]} 16. b5 {[%clk 0:01:12.8]} 16... Ne5 {[%clk
0:01:40.6]} 17. Nf3 {[%clk 0:01:01.7]} 17... Nd3+ {[%clk 0:01:35.4]} 18. Bxd3
{[%clk 0:01:01.4]} 18... Qxd3 {[%clk 0:01:36.3]} 19. Kf2 {[%clk 0:00:51.5]}
19... Qc2+ {[%clk 0:01:33.9]} 20. Kg1 {[%clk 0:00:42.6]} 20... Re4 {[%clk
0:01:32.5]} 21. Qxf6 {[%clk 0:00:37.9]} 21... Rg4 {[%clk 0:01:17.2]} 22. Qd8+
{[%clk 0:00:37.2]} 22... Kg7 {[%clk 0:01:16.6]} 23. Qd2 {[%clk 0:00:38.1]} 23...
Rxc4 {[%clk 0:01:06]} 24. Qxc2 {[%clk 0:00:32.3]} 24... Rxc2 {[%clk 0:01:06.9]}
25. c6 {[%clk 0:00:32.5]} 25... bxc6 {[%clk 0:00:50.7]} 26. Nd4 {[%clk
0:00:32.4]} 26... Rd2 {[%clk 0:00:51.3]} 27. bxc6 {[%clk 0:00:28.8]} 27... Rb8
{[%clk 0:00:51.5]} 28. h4 {[%clk 0:00:17.1]} 28... Rbb2 {[%clk 0:00:51.1]} 29.
Rh2 {[%clk 0:00:17.6]} 29... Kf6 {[%clk 0:00:47.4]} 30. Rf1+ {[%clk 0:00:16.7]}
30... Ke7 {[%clk 0:00:40.5]} 31. h5 {[%clk 0:00:16.5]} 31... Be6 {[%clk
0:00:28]} 32. h6 {[%clk 0:00:14.5]} 32... Kd6 {[%clk 0:00:24.1]} 33. Nxe6 {[%clk
0:00:13.2]} 33... fxe6 {[%clk 0:00:22.4]} 34. Rc1 {[%clk 0:00:12.8]} 34... Kc7
{[%clk 0:00:17.1]} 35. e4 {[%clk 0:00:08.4]} 35... Ra2 {[%clk 0:00:17.3]} 36. e5
{[%clk 0:00:04.9]} 36... Rxa3 {[%clk 0:00:14.4]} 37. Rh3 {[%clk 0:00:04.3]}
37... Rxh3 {[%clk 0:00:12.8]} 38. gxh3 {[%clk 0:00:05.2]} 38... Rd5 {[%clk
0:00:13.1]} 39. Rf1 {[%clk 0:00:02.9]} 39... Rxe5 {[%clk 0:00:10.8]} 40. Rf7+
{[%clk 0:00:03.5]} 40... Kxc6 {[%clk 0:00:11.5]} 41. Rxh7 {[%clk 0:00:04.2]}
41... Rh5 {[%clk 0:00:12.2]} 42. Kg2 {[%clk 0:00:03.7]} 42... a4 {[%clk
0:00:07]} 43. Kg3 {[%clk 0:00:03.6]} 43... a3 {[%clk 0:00:07.1]} 44. Ra7 {[%clk
0:00:01.6]} 44... Rxh6 {[%clk 0:00:06.8]} 45. Rxa3 {[%clk 0:00:02.2]} 45... Kd6
{[%clk 0:00:05.9]} 46. Kg4 {[%clk 0:00:02.9]} 46... Ke5 {[%clk 0:00:04.6]} 47.
Kg5 {[%clk 0:00:03.1]} 47... Rh8 {[%clk 0:00:04.7]} 48. Re3+ {[%clk 0:00:03.2]}
48... Kd6 {[%clk 0:00:05.3]} 49. h4 {[%clk 0:00:03.4]} 49... Ke7 {[%clk
0:00:05.9]} 50. h5 {[%clk 0:00:03]} 50... Kf7 {[%clk 0:00:06.2]} 51. h6 {[%clk
0:00:03.6]} 51... Rg8+ {[%clk 0:00:06]} 52. Kh5 {[%clk 0:00:04.3]} 52... Rg1
{[%clk 0:00:05.8]} 53. Rf3+ {[%clk 0:00:02.2]} 53... Kg8 {[%clk 0:00:05.8]} 54.
Ra3 {[%clk 0:00:02.8]} 54... Rh1+ {[%clk 0:00:05.8]} 55. Kg6 {[%clk 0:00:03.5]}
55... Rg1+ {[%clk 0:00:06.4]} 56. Kf6 {[%clk 0:00:04.2]} 56... Kh7 {[%clk
0:00:06.9]} 57. Rd3 {[%clk 0:00:02.8]} 57... Rg6+ {[%clk 0:00:06.8]} 58. Kf7
{[%clk 0:00:03.1]} 58... Rxh6 {[%clk 0:00:06.7]} 59. Rg3 {[%clk 0:00:02.4]}
59... Rh1 {[%clk 0:00:06.7]} 60. Kxe6 {[%clk 0:00:02.5]} 60... Re1+ {[%clk
0:00:06.9]} 61. Kf6 {[%clk 0:00:03]} 61... Rf1+ {[%clk 0:00:07.1]} 62. Ke6
{[%clk 0:00:03.5]} 62... Re1+ {[%clk 0:00:07.6]} 63. Kf5 {[%clk 0:00:04.2]}
63... Rf1+ {[%clk 0:00:08.1]} 64. Ke5 {[%clk 0:00:04.9]} 64... Re1+ {[%clk
0:00:08.6]} 65. Kf6 {[%clk 0:00:05.5]} 65... Rf1+ {[%clk 0:00:09.3]} 66. Ke7
{[%clk 0:00:06.2]} 66... Re1+ {[%clk 0:00:09.9]} 67. Kd6 {[%clk 0:00:06.9]}
67... Rd1+ {[%clk 0:00:10.4]} 68. Ke5 {[%clk 0:00:07.6]} 68... Re1+ {[%clk
0:00:11.1]} 69. Kd4 {[%clk 0:00:08.3]} 69... Rd1+ {[%clk 0:00:11.7]} 70. Ke3
{[%clk 0:00:08.9]} 70... Re1+ {[%clk 0:00:12.5]} 71. Kf2 {[%clk 0:00:09.3]}
71... Re6 {[%clk 0:00:13.1]} 72. Ra3 {[%clk 0:00:09.5]} 72... Rf6+ {[%clk
0:00:13.6]} 73. Kg3 {[%clk 0:00:10]} 73... Rg6+ {[%clk 0:00:14.1]} 74. Kf4
{[%clk 0:00:10.5]} 74... Rf6+ {[%clk 0:00:14.9]} 75. Kg5 {[%clk 0:00:11.2]}
75... Rf1 {[%clk 0:00:15.5]} 76. Ra7+ {[%clk 0:00:10.5]} 76... Kg8 {[%clk
0:00:16.1]} 77. Kg6 {[%clk 0:00:11.3]} 77... Rg1+ {[%clk 0:00:16.3]} 78. Kf6
{[%clk 0:00:12]} 78... Rf1+ {[%clk 0:00:16.9]} 79. Ke6 {[%clk 0:00:12.7]} 79...
Re1+ {[%clk 0:00:17.3]} 80. Kf5 {[%clk 0:00:13.4]} 80... Rf1+ {[%clk 0:00:17.9]}
81. Ke4 {[%clk 0:00:14.1]} 81... Re1+ {[%clk 0:00:18.6]} 82. Kf3 {[%clk
0:00:14.8]} 82... Rf1+ {[%clk 0:00:19.3]} 83. Ke3 {[%clk 0:00:15.2]} 83... Rf7
{[%clk 0:00:19.7]} 84. Ra6 {[%clk 0:00:14.3]} 84... Kg7 {[%clk 0:00:19.9]} 85.
Ke4 {[%clk 0:00:14.9]} 85... Rf1 {[%clk 0:00:20]} 86. Ke5 {[%clk 0:00:14.5]}
86... Rf2 {[%clk 0:00:20.4]} 87. Ra1 {[%clk 0:00:13.5]} 87... Rf3 {[%clk
0:00:20.7]} 88. Rg1+ {[%clk 0:00:13.5]} 88... Kf7 {[%clk 0:00:20]} 89. Rb1
{[%clk 0:00:13.7]} 89... Kg7 {[%clk 0:00:20.3]} 90. Ke4 {[%clk 0:00:13.1]} 90...
Rf8 {[%clk 0:00:20.2]} 91. Ke5 {[%clk 0:00:12.9]} 91... Rf2 {[%clk 0:00:20.3]}
92. Rg1+ {[%clk 0:00:12.6]} 92... Kf7 {[%clk 0:00:20.2]} 93. Rc1 {[%clk
0:00:13.3]} 93... Kg7 {[%clk 0:00:20.7]} 94. Rc7+ {[%clk 0:00:13]} 94... Kg6
{[%clk 0:00:21.2]} 95. Rc6+ {[%clk 0:00:13.3]} 95... Kg7 {[%clk 0:00:21.9]} 96.
Rc3 {[%clk 0:00:13.3]} 96... Re2+ {[%clk 0:00:22.1]} 97. Kf4 {[%clk 0:00:13.1]}
97... Rf2+ {[%clk 0:00:22.7]} 98. Ke3 {[%clk 0:00:13.5]} 98... Rf6 {[%clk
0:00:22.7]} 99. Rc7+ {[%clk 0:00:13.3]} 99... Rf7 {[%clk 0:00:23.2]} 100. Rc1
{[%clk 0:00:13.6]} 100... Rf6 {[%clk 0:00:23.5]} 101. Ke4 {[%clk 0:00:14]}
101... Re6+ {[%clk 0:00:24.1]} 102. Kf5 {[%clk 0:00:14.4]} 102... Rf6+ {[%clk
0:00:24.8]} 103. Ke5 {[%clk 0:00:15.1]} 103... Rf2 {[%clk 0:00:24.9]} 104. Rg1+
{[%clk 0:00:15]} 104... Kf7 {[%clk 0:00:25.3]} 105. Ra1 {[%clk 0:00:15.9]}
105... Kg6 {[%clk 0:00:25.7]} 106. Rg1+ {[%clk 0:00:15.4]} 106... Kf7 {[%clk
0:00:26.1]} 1/2-1/2

[Event "Late-Titled-Tuesday-Blitz-April-02-2024"]
[Site "Chess.com"]
[Date "2024.04.02"]
[Round "1"]
[White "kai_nov"]
[Black "karinachess1"]
[Result "0-1"]
[WhiteElo "2290"]
[BlackElo "2618"]
[TimeControl "180+1"]
[EndTime "14:09:34 PDT"]
[Termination "karinachess1 won on time"]

1. d4 {[%clk 0:03:00.9]} 1... Nf6 {[%clk 0:02:59.8]} 2. c4 {[%clk 0:03:00]} 2...
e6 {[%clk 0:02:59.2]} 3. Nc3 {[%clk 0:02:59.3]} 3... d5 {[%clk 0:02:59.9]} 4.
cxd5 {[%clk 0:02:58.1]} 4... exd5 {[%clk 0:03:00.8]} 5. Bg5 {[%clk 0:02:58.3]}
5... c6 {[%clk 0:03:01.5]} 6. e3 {[%clk 0:02:58.5]} 6... Be7 {[%clk 0:03:02.2]}
7. Bd3 {[%clk 0:02:58.4]} 7... Nbd7 {[%clk 0:03:02.9]} 8. h3 {[%clk 0:02:49.7]}
8... O-O {[%clk 0:02:57.4]} 9. Qc2 {[%clk 0:02:37.7]} 9... Re8 {[%clk
0:02:57.3]} 10. Nf3 {[%clk 0:02:29.6]} 10... Ne4 {[%clk 0:02:50.9]} 11. Bxe4
{[%clk 0:02:13.6]} 11... dxe4 {[%clk 0:02:38.4]} 12. Bxe7 {[%clk 0:02:09.9]}
12... Qxe7 {[%clk 0:02:37.8]} 13. Nd2 {[%clk 0:02:10.8]} 13... Nf6 {[%clk
0:02:31.3]} 14. O-O {[%clk 0:02:10.3]} 14... Bf5 {[%clk 0:02:26.3]} 15. Rfc1
{[%clk 0:02:06]} 15... Qe6 {[%clk 0:02:19.3]} 16. Kh2 {[%clk 0:01:25.9]} 16...
Rad8 {[%clk 0:02:10.3]} 17. Ne2 {[%clk 0:01:09.5]} 17... Nd5 {[%clk 0:02:03.8]}
18. a3 {[%clk 0:00:55.4]} 18... h5 {[%clk 0:01:57.3]} 19. Nc4 {[%clk 0:00:41.2]}
19... h4 {[%clk 0:01:54.2]} 20. b4 {[%clk 0:00:36.9]} 20... a6 {[%clk 0:01:47]}
21. Rab1 {[%clk 0:00:36.3]} 21... Qe7 {[%clk 0:01:44]} 22. Rb3 {[%clk
0:00:17.5]} 22... Qc7+ {[%clk 0:01:35.1]} 23. Kg1 {[%clk 0:00:15.9]} 23... Re6
{[%clk 0:01:31.8]} 24. Ne5 {[%clk 0:00:15.4]} 24... f6 {[%clk 0:01:15.7]} 25.
Nc4 {[%clk 0:00:07.6]} 25... g5 {[%clk 0:01:10.2]} 26. a4 {[%clk 0:00:07.1]}
26... Kh7 {[%clk 0:00:58.3]} 27. b5 {[%clk 0:00:06.8]} 27... axb5 {[%clk
0:00:59.2]} 28. axb5 {[%clk 0:00:06.8]} 28... g4 {[%clk 0:00:56.8]} 29. bxc6
{[%clk 0:00:05.4]} 29... bxc6 {[%clk 0:00:56.9]} 30. Qb2 {[%clk 0:00:04.2]}
30... Qg7 {[%clk 0:00:44.6]} 31. Rb7 {[%clk 0:00:03.4]} 31... Re7 {[%clk
0:00:45.2]} 32. Rxe7 {[%clk 0:00:03.4]} 32... Nxe7 {[%clk 0:00:46.1]} 33. hxg4
{[%clk 0:00:03.6]} 33... Bxg4 {[%clk 0:00:42.9]} 34. Nf4 {[%clk 0:00:03.7]}
34... Rg8 {[%clk 0:00:40.4]} 35. Kf1 {[%clk 0:00:01.5]} 35... h3 {[%clk
0:00:24.1]} 36. gxh3 {[%clk 0:00:01.2]} 36... Bf3 {[%clk 0:00:23.3]} 37. Ke1
{[%clk 0:00:01.4]} 37... Qg1+ {[%clk 0:00:17.7]} 38. Kd2 {[%clk 0:00:02.1]}
38... Qxf2+ {[%clk 0:00:18.2]} 39. Kc3 {[%clk 0:00:02.8]} 39... Qh4 {[%clk
0:00:16.6]} 40. Qb7 {[%clk 0:00:02.7]} 40... f5 {[%clk 0:00:13.8]} 41. Qd7
{[%clk 0:00:02.1]} 41... Qf6 {[%clk 0:00:12.8]} 42. Ne5 {[%clk 0:00:02.2]} 42...
Rg7 {[%clk 0:00:12.5]} 43. Rb1 {[%clk 0:00:02.1]} 43... Nd5+ {[%clk 0:00:13]}
44. Nxd5 {[%clk 0:00:02.4]} 44... cxd5 {[%clk 0:00:12.5]} 45. Qc6 {[%clk
0:00:01.8]} 45... Qxc6+ {[%clk 0:00:12.1]} 46. Nxc6 {[%clk 0:00:02.7]} 46... Rc7
{[%clk 0:00:12.9]} 47. Rb6 {[%clk 0:00:03.1]} 47... Kg6 {[%clk 0:00:10.2]} 48.
Kd2 {[%clk 0:00:03.5]} 48... Kg5 {[%clk 0:00:10.7]} 49. Ne5 {[%clk 0:00:04.1]}
49... Rh7 {[%clk 0:00:08.5]} 50. Rg6+ {[%clk 0:00:03.9]} 50... Kh4 {[%clk
0:00:07.1]} 51. Nxf3+ {[%clk 0:00:04.2]} 51... exf3 {[%clk 0:00:08]} 52. Ke1
{[%clk 0:00:04.5]} 52... Kxh3 {[%clk 0:00:07.9]} 53. Kf2 {[%clk 0:00:05.1]}
53... Kh4 {[%clk 0:00:06]} 54. Kxf3 {[%clk 0:00:05.5]} 54... Rd7 {[%clk
0:00:05.3]} 55. Kf4 {[%clk 0:00:05.4]} 55... Kh5 {[%clk 0:00:05.4]} 56. Rg5+
{[%clk 0:00:05.8]} 56... Kh6 {[%clk 0:00:05.5]} 57. Rxf5 {[%clk 0:00:06.5]}
57... Kg6 {[%clk 0:00:06.2]} 58. Rf8 {[%clk 0:00:06.1]} 58... Kg7 {[%clk
0:00:06.6]} 59. Rf5 {[%clk 0:00:06.1]} 59... Kg6 {[%clk 0:00:07.2]} 60. Re5
{[%clk 0:00:05.7]} 60... Kf6 {[%clk 0:00:07.1]} 61. Rf5+ {[%clk 0:00:05.5]}
61... Ke6 {[%clk 0:00:07.6]} 62. Rh5 {[%clk 0:00:06.2]} 62... Rf7+ {[%clk
0:00:07.6]} 63. Kg4 {[%clk 0:00:06.7]} 63... Kd6 {[%clk 0:00:07.7]} 64. Rh6+
{[%clk 0:00:06.8]} 64... Kd7 {[%clk 0:00:08.3]} 65. Kg5 {[%clk 0:00:07.2]} 65...
Rf8 {[%clk 0:00:07.8]} 66. Kg4 {[%clk 0:00:07.1]} 66... Rf7 {[%clk 0:00:08.1]}
67. Rg6 {[%clk 0:00:07.4]} 67... Rf8 {[%clk 0:00:08]} 68. Kg3 {[%clk 0:00:07.5]}
68... Rf7 {[%clk 0:00:08.3]} 69. Rg4 {[%clk 0:00:07.8]} 69... Kd6 {[%clk
0:00:08.1]} 70. Rf4 {[%clk 0:00:08.3]} 70... Rg7+ {[%clk 0:00:07.8]} 71. Kf3
{[%clk 0:00:09]} 71... Re7 {[%clk 0:00:08.7]} 72. Rh4 {[%clk 0:00:09.2]} 72...
Rf7+ {[%clk 0:00:08.6]} 73. Ke2 {[%clk 0:00:09.7]} 73... Ra7 {[%clk 0:00:08]}
74. Rh6+ {[%clk 0:00:09.7]} 74... Kc7 {[%clk 0:00:08.1]} 75. Kf3 {[%clk
0:00:09.5]} 75... Ra8 {[%clk 0:00:07.6]} 76. Rh7+ {[%clk 0:00:09.7]} 76... Kd6
{[%clk 0:00:07.8]} 77. Rh6+ {[%clk 0:00:09.8]} 77... Kd7 {[%clk 0:00:08.4]} 78.
Kf4 {[%clk 0:00:10.3]} 78... Re8 {[%clk 0:00:07.8]} 79. Rf6 {[%clk 0:00:10.1]}
79... Re4+ {[%clk 0:00:07.4]} 80. Kf3 {[%clk 0:00:09.9]} 80... Re7 {[%clk
0:00:07.6]} 81. Ra6 {[%clk 0:00:09.9]} 81... Re8 {[%clk 0:00:06.8]} 82. Ke2
{[%clk 0:00:09.4]} 82... Re4 {[%clk 0:00:05.8]} 83. Kd3 {[%clk 0:00:09.4]} 83...
Re8 {[%clk 0:00:05.7]} 84. Kc3 {[%clk 0:00:09.3]} 84... Rxe3+ {[%clk 0:00:05.4]}
85. Kb4 {[%clk 0:00:09.2]} 85... Re1 {[%clk 0:00:03]} 86. Kc5 {[%clk 0:00:09.5]}
86... Rh1 {[%clk 0:00:03.3]} 87. Ra7+ {[%clk 0:00:08.7]} 87... Kd8 {[%clk
0:00:03.7]} 0-1

[Event "Late-Titled-Tuesday-Blitz-April-02-2024"]
[Site "Chess.com"]
[Date "2024.04.02"]
[Round "2"]
[White "vladislavkovalev"]
[Black "AjedrezenMadrid"]
[Result "1-0"]
[WhiteElo "2880"]
[BlackElo "2577"]
[TimeControl "180+1"]
[EndTime "14:12:06 PDT"]
[Termination "vladislavkovalev won by resignation"]

1. e4 {[%clk 0:02:58.6]} 1... c6 {[%clk 0:02:59.7]} 2. Nf3 {[%clk 0:02:58.7]}
2... d5 {[%clk 0:02:59.8]} 3. d3 {[%clk 0:02:59.5]} 3... dxe4 {[%clk 0:03:00.2]}
4. dxe4 {[%clk 0:03:00.4]} 4... Qxd1+ {[%clk 0:03:00.3]} 5. Kxd1 {[%clk
0:03:01.3]} 5... Nd7 {[%clk 0:03:00.3]} 6. Ne1 {[%clk 0:02:51.2]} 6... Ngf6
{[%clk 0:02:58.9]} 7. f3 {[%clk 0:02:51.3]} 7... g6 {[%clk 0:02:55.4]} 8. Be3
{[%clk 0:02:49.9]} 8... Bg7 {[%clk 0:02:55.7]} 9. Nd2 {[%clk 0:02:49.2]} 9...
O-O {[%clk 0:02:55.9]} 10. a4 {[%clk 0:02:48]} 10... a5 {[%clk 0:02:53.4]} 11.
c3 {[%clk 0:02:44.8]} 11... Rd8 {[%clk 0:02:53.4]} 12. Kc2 {[%clk 0:02:45.3]}
12... Ne8 {[%clk 0:02:52.3]} 13. Nc4 {[%clk 0:02:40.2]} 13... c5 {[%clk
0:02:45.2]} 14. Rd1 {[%clk 0:02:33.4]} 14... Ra6 {[%clk 0:02:24.5]} 15. Bxc5
{[%clk 0:02:25.9]} 15... Bf6 {[%clk 0:02:20]} 16. Nb6 {[%clk 0:02:21]} 16...
Nxc5 {[%clk 0:02:17]} 17. Rxd8 {[%clk 0:02:20.4]} 17... Rxb6 {[%clk 0:02:15.5]}
18. Rxe8+ {[%clk 0:02:21]} 1-0

[Event "Late-Titled-Tuesday-Blitz-April-02-2024"]
[Site "Chess.com"]
[Date "2024.04.02"]
[Round "2"]
[White "jinxy2009"]
[Black "Manukyan_Artak"]
[Result "0-1"]
[WhiteElo "2287"]
[BlackElo "2540"]
[TimeControl "180+1"]
[EndTime "14:12:58 PDT"]
[Termination "Manukyan_Artak won by resignation"]

1. e4 {[%clk 0:03:00.4]} 1... c6 {[%clk 0:02:59.4]} 2. d4 {[%clk 0:02:59.9]}
2... d5 {[%clk 0:03:00.3]} 3. Nc3 {[%clk 0:02:58.2]} 3... dxe4 {[%clk
0:03:00.1]} 4. Nxe4 {[%clk 0:02:59.1]} 4... Nf6 {[%clk 0:03:00.8]} 5. Nxf6+
{[%clk 0:02:57.6]} 5... exf6 {[%clk 0:03:01.7]} 6. Nf3 {[%clk 0:02:56.5]} 6...
Bd6 {[%clk 0:03:02.6]} 7. Bd3 {[%clk 0:02:55.3]} 7... O-O {[%clk 0:03:02.8]} 8.
O-O {[%clk 0:02:53.1]} 8... Bg4 {[%clk 0:03:03]} 9. h3 {[%clk 0:02:53]} 9... Bh5
{[%clk 0:03:02.5]} 10. c3 {[%clk 0:02:53.4]} 10... Re8 {[%clk 0:03:01.4]} 11.
Be3 {[%clk 0:02:48.8]} 11... Nd7 {[%clk 0:02:59.6]} 12. Re1 {[%clk 0:02:47.9]}
12... Qc7 {[%clk 0:02:59.6]} 13. Qc2 {[%clk 0:02:38.9]} 13... Bxf3 {[%clk
0:02:57]} 14. Bxh7+ {[%clk 0:02:38.5]} 14... Kh8 {[%clk 0:02:54.4]} 15. gxf3
{[%clk 0:02:08.8]} 15... g6 {[%clk 0:02:53.9]} 16. Bxg6 {[%clk 0:01:44.3]} 16...
fxg6 {[%clk 0:02:54.8]} 17. Kh1 {[%clk 0:01:44.8]} 17... Nf8 {[%clk 0:02:46]}
18. Rg1 {[%clk 0:01:43.6]} 18... Qh7 {[%clk 0:02:40.9]} 19. Kg2 {[%clk 0:01:24]}
19... g5 {[%clk 0:02:32.8]} 20. Qb3 {[%clk 0:01:20.1]} 20... Ng6 {[%clk
0:02:27.3]} 0-1

[Event "Late-Titled-Tuesday-Blitz-April-02-2024"]
[Site "Chess.com"]
[Date "2024.04.02"]
[Round "2"]
[White "JERO-8914"]
[Black "SaqoChess_Twitch"]
[Result "1-0"]
[WhiteElo "2458"]
[BlackElo "2681"]
[TimeControl "180+1"]
[EndTime "14:13:00 PDT"]
[Termination "JERO-8914 won by resignation"]

1. c4 {[%clk 0:03:00.8]} 1... Nf6 {[%clk 0:02:56.5]} 2. Nc3 {[%clk 0:03:00.3]}
2... e6 {[%clk 0:02:56.3]} 3. e4 {[%clk 0:03:00]} 3... c5 {[%clk 0:02:55.9]} 4.
Nf3 {[%clk 0:02:57.2]} 4... d6 {[%clk 0:02:54.1]} 5. d4 {[%clk 0:02:52.8]} 5...
cxd4 {[%clk 0:02:54]} 6. Nxd4 {[%clk 0:02:53.7]} 6... Nc6 {[%clk 0:02:54.9]} 7.
Be3 {[%clk 0:02:52.7]} 7... Be7 {[%clk 0:02:54.8]} 8. Be2 {[%clk 0:02:51.2]}
8... O-O {[%clk 0:02:55]} 9. O-O {[%clk 0:02:49.5]} 9... Nxd4 {[%clk 0:02:55.1]}
10. Bxd4 {[%clk 0:02:48.8]} 10... b6 {[%clk 0:02:55.9]} 11. Bf3 {[%clk
0:02:33.3]} 11... Bb7 {[%clk 0:02:46.2]} 12. e5 {[%clk 0:02:30.5]} 12... Bxf3
{[%clk 0:02:44.1]} 13. Qxf3 {[%clk 0:02:31.4]} 13... dxe5 {[%clk 0:02:44.4]} 14.
Bxe5 {[%clk 0:02:32.1]} 14... Qc8 {[%clk 0:02:35.7]} 15. b3 {[%clk 0:02:28.8]}
15... Nd7 {[%clk 0:02:32.8]} 16. Bd4 {[%clk 0:02:26.2]} 16... Bf6 {[%clk
0:02:32.7]} 17. Rad1 {[%clk 0:02:24.9]} 17... Bxd4 {[%clk 0:02:32.1]} 18. Rxd4
{[%clk 0:02:25.8]} 18... Rd8 {[%clk 0:02:26.8]} 19. Rfd1 {[%clk 0:02:25.1]}
19... Qc7 {[%clk 0:01:54.9]} 20. Rxd7 {[%clk 0:02:14]} 1-0

[Event "Late-Titled-Tuesday-Blitz-April-02-2024"]
[Site "Chess.com"]
[Date "2024.04.02"]
[Round "2"]
[White "The_Straightforward_Rook"]
[Black "yaguigor"]
[Result "0-1"]
[WhiteElo "2368"]
[BlackElo "2623"]
[TimeControl "180+1"]
[EndTime "14:13:01 PDT"]
[Termination "yaguigor won by resignation"]

1. e4 {[%clk 0:02:56.8]} 1... c5 {[%clk 0:02:59.2]} 2. c3 {[%clk 0:02:56.5]}
2... Nf6 {[%clk 0:02:58.3]} 3. e5 {[%clk 0:02:56.4]} 3... Nd5 {[%clk 0:02:57.1]}
4. Nf3 {[%clk 0:02:57.3]} 4... Nc6 {[%clk 0:02:55.6]} 5. Bc4 {[%clk 0:02:57.7]}
5... e6 {[%clk 0:02:54.9]} 6. d4 {[%clk 0:02:57.3]} 6... cxd4 {[%clk 0:02:54.2]}
7. O-O {[%clk 0:02:57.8]} 7... d6 {[%clk 0:02:53.4]} 8. cxd4 {[%clk 0:02:57.6]}
8... Be7 {[%clk 0:02:52.8]} 9. Qe2 {[%clk 0:02:57.2]} 9... O-O {[%clk
0:02:52.1]} 10. Rd1 {[%clk 0:02:56]} 10... Na5 {[%clk 0:02:50.8]} 11. Bxd5
{[%clk 0:02:52]} 11... exd5 {[%clk 0:02:50.2]} 12. Nc3 {[%clk 0:02:52.9]} 12...
Be6 {[%clk 0:02:49.5]} 13. Bf4 {[%clk 0:02:51.2]} 13... a6 {[%clk 0:02:34.5]}
14. h3 {[%clk 0:02:49.2]} 14... Rc8 {[%clk 0:02:32.5]} 15. Rac1 {[%clk
0:02:48.4]} 15... Re8 {[%clk 0:02:22.2]} 16. Nh2 {[%clk 0:02:19.6]} 16... Nc6
{[%clk 0:02:15]} 17. exd6 {[%clk 0:02:11.7]} 17... Bxd6 {[%clk 0:02:13.5]} 18.
Bxd6 {[%clk 0:02:12.6]} 18... Qxd6 {[%clk 0:02:13.3]} 19. Qd2 {[%clk 0:02:08]}
19... Ne7 {[%clk 0:02:04.5]} 20. Ng4 {[%clk 0:02:04.8]} 20... Bxg4 {[%clk
0:02:02.5]} 21. hxg4 {[%clk 0:02:05.7]} 21... Ng6 {[%clk 0:02:01.5]} 22. Qg5
{[%clk 0:02:02.8]} 22... Nf4 {[%clk 0:01:58.1]} 23. g3 {[%clk 0:01:58.9]} 23...
Nh3+ {[%clk 0:01:54.6]} 0-1

[Event "Late-Titled-Tuesday-Blitz-April-02-2024"]
[Site "Chess.com"]
[Date "2024.04.02"]
[Round "2"]
[White "KuzubovYuriy"]
[Black "Squirlolz"]
[Result "1-0"]
[WhiteElo "2921"]
[BlackElo "2583"]
[TimeControl "180+1"]
[EndTime "14:13:02 PDT"]
[Termination "KuzubovYuriy won by resignation"]

1. d4 {[%clk 0:03:00.9]} 1... c5 {[%clk 0:02:58.9]} 2. d5 {[%clk 0:03:00.3]}
2... g6 {[%clk 0:02:59.1]} 3. e4 {[%clk 0:02:54.9]} 3... Bg7 {[%clk 0:02:59.2]}
4. h4 {[%clk 0:02:53.9]} 4... e6 {[%clk 0:02:53.3]} 5. Nc3 {[%clk 0:02:47.2]}
5... exd5 {[%clk 0:02:49.9]} 6. Nxd5 {[%clk 0:02:45.7]} 6... Nf6 {[%clk
0:02:48]} 7. Bg5 {[%clk 0:02:35.9]} 7... Qa5+ {[%clk 0:02:26.2]} 8. b4 {[%clk
0:02:30]} 8... cxb4 {[%clk 0:01:52.3]} 9. Bxf6 {[%clk 0:02:27.8]} 9... b3+
{[%clk 0:01:49.2]} 10. Qd2 {[%clk 0:02:21.1]} 10... b2 {[%clk 0:01:44.3]} 11.
Qxa5 {[%clk 0:02:14.2]} 11... bxa1=Q+ {[%clk 0:01:42.1]} 12. Bxa1 {[%clk
0:02:13.2]} 12... Bxa1 {[%clk 0:01:43]} 13. Nc7+ {[%clk 0:02:06.8]} 13... Kf8
{[%clk 0:01:42.8]} 14. Nxa8 {[%clk 0:02:06.4]} 14... Nc6 {[%clk 0:01:42.7]} 15.
Qa3+ {[%clk 0:02:04.1]} 15... Kg7 {[%clk 0:01:42.4]} 16. c3 {[%clk 0:02:03.9]}
16... Re8 {[%clk 0:01:41.3]} 17. Qc1 {[%clk 0:02:01.7]} 17... Rxe4+ {[%clk
0:01:40]} 18. Be2 {[%clk 0:02:00.7]} 18... Nd4 {[%clk 0:01:37.9]} 19. cxd4
{[%clk 0:01:59]} 1-0

[Event "Late-Titled-Tuesday-Blitz-April-02-2024"]
[Site "Chess.com"]
[Date "2024.04.02"]
[Round "2"]
[White "Aygehovit1992"]
[Black "DirtyKabab"]
[Result "1-0"]
[WhiteElo "2870"]
[BlackElo "2575"]
[TimeControl "180+1"]
[EndTime "14:13:31 PDT"]
[Termination "Aygehovit1992 won by resignation"]

1. e4 {[%clk 0:03:00.9]} 1... g6 {[%clk 0:02:56.3]} 2. d4 {[%clk 0:03:00.5]}
2... Nf6 {[%clk 0:02:56.5]} 3. Nc3 {[%clk 0:03:00.3]} 3... d5 {[%clk 0:02:56.8]}
4. e5 {[%clk 0:02:58.6]} 4... Ne4 {[%clk 0:02:57.3]} 5. Nxe4 {[%clk 0:02:58.7]}
5... dxe4 {[%clk 0:02:58.2]} 6. Bc4 {[%clk 0:02:56.2]} 6... Bg7 {[%clk
0:02:58.5]} 7. Ne2 {[%clk 0:02:49.5]} 7... c5 {[%clk 0:02:58.1]} 8. c3 {[%clk
0:02:40]} 8... Nc6 {[%clk 0:02:58.5]} 9. O-O {[%clk 0:02:35.4]} 9... O-O {[%clk
0:02:51.7]} 10. Be3 {[%clk 0:02:32.3]} 10... b6 {[%clk 0:02:40.3]} 11. e6 {[%clk
0:02:30.1]} 11... f5 {[%clk 0:02:38.4]} 12. dxc5 {[%clk 0:02:28.3]} 12... Na5
{[%clk 0:02:34.3]} 13. Bd5 {[%clk 0:02:24.8]} 13... Ba6 {[%clk 0:01:49]} 14.
Bxa8 {[%clk 0:02:19.3]} 14... Qxa8 {[%clk 0:01:44.4]} 15. cxb6 {[%clk
0:02:19.3]} 15... Rd8 {[%clk 0:01:40.6]} 16. Qa4 {[%clk 0:02:04.9]} 16... Bxe2
{[%clk 0:01:31.1]} 17. Qxa5 {[%clk 0:02:04.1]} 17... Bxf1 {[%clk 0:01:27.7]} 18.
b7 {[%clk 0:02:01.2]} 18... Qb8 {[%clk 0:01:22.2]} 19. Bf4 {[%clk 0:01:55.7]}
1-0